fUST/lending_fUST_20240621
["ID","MTS","AMOUNT","RATE_DAILY","PERIOD"]
[330013869,1718934640837,-500.0,0.00054794,120]
[330013870,1718934640847,-516.57,0.00054794,120]
[330013871,1718934640856,-501.92561853,0.00054794,120]
[330013872,1718934640866,-500.0,0.00054794,120]
[330013873,1718934640876,-500.0,0.00054794,120]
[330013874,1718934640885,-981.08,0.00054794,120]
[330013875,1718934640895,-500.0,0.00054794,120]
[330013876,1718934640904,-513.57439989,0.00054794,120]
[330013877,1718934640914,-363.79476119,0.00054794,120]
[330013878,1718934640924,-500.0,0.00054794,120]
[330013879,1718934640934,-519.86981776,0.00054794,120]
[330013880,1718934640942,-500.0,0.00054794,120]
[330013881,1718934640951,-500.0,0.00054794,120]
[330013882,1718934640961,-515.78155684,0.00054794,120]
[330013883,1718934640970,-500.0,0.00054794,120]
[330013884,1718934640979,-1000.0,0.00054794,120]
[330013885,1718934640989,-500.0,0.00054794,120]
[330013886,1718934640999,-592.8,0.00054794,120]
[330013887,1718934641011,-508.55748366,0.00054794,120]
[330013888,1718934641020,-627.2,0.00054794,120]
[330013889,1718934641029,-584.23,0.00054794,120]
[330013890,1718934641039,-500.0,0.00054794,120]
[330013891,1718934641048,-500.0,0.00054794,120]
[330013892,1718934641057,-500.0,0.00054794,60]
[330013893,1718934641067,-500.0,0.00054794,120]
[330013894,1718934641076,-500.0,0.00054794,120]
[330013895,1718934641085,-53735.48,0.00054794,120]
[330013896,1718934641095,-685.88,0.00054794,120]
[330013897,1718934641104,-500.0,0.00054794,120]
[330013898,1718934641114,-1435.65,0.00054794,120]
[330013899,1718934641123,-508.20344403,0.00054794,120]
[330013900,1718934641132,-3378.72,0.00054794,120]
[330013902,1718934641142,-538.03519983,0.00054794,120]
[330013903,1718934641151,-500.0,0.00054794,120]
[330013905,1718934641160,-667.78,0.00054794,120]
[330013906,1718934641170,-1353.63,0.00054794,120]
[330013907,1718934641179,-600.93,0.00054794,120]
[330013909,1718934641188,-500.0,0.00054794,120]
[330013910,1718934641198,-1725.82,0.00054794,120]
[330013912,1718934641207,-502.92188098,0.00054794,120]
[330013913,1718934641216,-504.86720722,0.00054794,120]
[330013914,1718934641226,-4805.0,0.00054794,21]
[330013915,1718934641235,-604.34,0.00054794,120]
[330013916,1718934641244,-1765.29,0.00054794,120]
[330013917,1718934641254,-649.26936256,0.00054794,120]
[330013918,1718934641264,-1277.59,0.00054794,120]
[330013919,1718934641273,-9123.65,0.00054794,120]
[330013920,1718934641282,-500.0,0.00054794,120]
[330013921,1718934641291,-775.23,0.00054794,120]
[330013922,1718934641300,-502.63351276,0.00054794,120]
[330013923,1718934641311,-727.95,0.00054794,120]
[330013924,1718934641319,-533.52638219,0.00054794,120]
[330013926,1718934641407,-500.0,0.00054794,120]
[330013927,1718934641425,-500.0,0.00054794,120]
[330013928,1718934641440,-500.0,0.00054794,120]
[330013929,1718934641450,-500.0,0.00054794,120]
[330013930,1718934641459,-500.0,0.00054794,120]
[330013931,1718934641471,-500.0,0.00054794,120]
[330013932,1718934641482,-500.0,0.00054794,120]
[330013933,1718934641491,-500.0,0.00054794,120]
[330013934,1718934641499,-281.01145768,0.00054794,120]
[330013935,1718934641515,-1202.81,0.00054794,120]
[330013936,1718934641524,-500.0,0.00054794,120]
[330013937,1718934641533,-395.50397672,0.00054794,120]
[330013938,1718934641542,-500.0,0.00054794,120]
[330013939,1718934641555,-626.84,0.00054794,120]
[330013940,1718934641565,-588.71,0.00054794,120]
[330013941,1718934641575,-500.0,0.00054794,120]
[330013942,1718934641584,-1436.71,0.00054794,120]
[330013943,1718934641594,-2068.06,0.00054794,120]
[330013944,1718934641603,-173.05646855,0.00054794,120]
[330013945,1718934641612,-500.0,0.00054794,120]
[330013946,1718934641621,-500.0,0.00054794,120]
[330013947,1718934641631,-500.0,0.00054794,30]
[330013948,1718934641640,-503.58507705,0.00054794,120]
[330013949,1718934641650,-500.0,0.00054794,120]
[330013950,1718934641659,-500.0,0.00054794,120]
[330013951,1718934641668,-1040.78,0.00054794,120]
[330013952,1718934641676,-2118.77,0.00054794,120]
[330013953,1718934641686,-500.0,0.00054794,120]
[330013954,1718934641695,-500.0,0.00054794,120]
[330013955,1718934641705,-7681.24,0.00054794,120]
[330013956,1718934641714,-500.0,0.00054794,120]
[330013957,1718934641723,-2599.35,0.00054794,120]
[330013958,1718934641733,-500.0,0.00054794,120]
[330013959,1718934641742,-1695.47,0.00054794,120]
[330013960,1718934641752,-1634.56,0.00054794,120]
[330013961,1718934641761,-500.0,0.00054794,120]
[330013962,1718934641771,-201.80258211,0.00054794,7]
[330013963,1718934641780,-1266.91,0.00054794,120]
[330013964,1718934641790,-2682.57,0.00054794,120]
[330013965,1718934641799,-248.95138326,0.00054794,120]
[330013966,1718934641808,-268.13,0.00054794,120]
[330013967,1718934641817,-879.42,0.00054794,120]
[330013968,1718934641826,-1149.54,0.00054794,120]
[330013969,1718934641835,-500.0,0.00054794,90]
[330013970,1718934641844,-8839.7,0.00054794,120]
[330013971,1718934641853,-502.16440813,0.00054794,120]
[330013972,1718934641862,-500.0,0.00054794,120]
[330013973,1718934641872,-50000.0,0.00054794,120]
[330013974,1718934641881,-664.39,0.00054794,120]
[330013975,1718934641891,-500.0,0.00054794,120]
[330013976,1718934641901,-507.12750167,0.00054794,120]
[330013977,1718934641910,-692.07,0.00054794,120]
[330013978,1718934641919,-500.0,0.00054794,120]
[330013979,1718934641929,-504.65462272,0.00054794,120]
[330013980,1718934641938,-264.56422597,0.00054794,120]
[330013981,1718934641947,-500.0,0.00054794,120]
[330013982,1718934641956,-500.0,0.00054794,120]
[330013983,1718934641965,-500.0,0.00054794,120]
[330013984,1718934641974,-500.0,0.00054794,2]
[330013985,1718934641983,-1378.25,0.00054794,120]
[330013986,1718934641992,-500.0,0.00054794,120]
[330013987,1718934642002,-500.0,0.00054794,120]
[330013988,1718934642015,-552.75884604,0.00054794,120]
[330013989,1718934642024,-760.58,0.00054794,120]
[330013990,1718934642034,-766.51,0.00054794,120]
[330013991,1718934642043,-500.0,0.00054794,120]
[330013992,1718934642052,-500.0,0.00054794,120]
[330013993,1718934642061,-1180.51,0.00054794,120]
[330013994,1718934642071,-549.46,0.00054794,120]
[330013995,1718934642080,-554.92,0.00054794,120]
[330013996,1718934642089,-500.0,0.00054794,120]
[330013997,1718934642099,-500.0,0.00054794,120]
[330013998,1718934642108,-503.65953819,0.00054794,120]
[330013999,1718934642118,-649.84,0.00054794,120]
[330014000,1718934642128,-25506.39,0.00054794,120]
[330014001,1718934642138,-1447.88,0.00054794,120]
[330014002,1718934642147,-506.3919126,0.00054794,120]
[330014003,1718934642157,-500.0,0.00054794,120]
[330014004,1718934642166,-500.0,0.00054794,120]
[330014005,1718934642175,-500.0,0.00054794,120]
[330014006,1718934642185,-500.0,0.00054794,120]
[330014007,1718934642194,-500.0,0.00054794,120]
[330014008,1718934642204,-500.0,0.00054794,120]
[330014009,1718934642213,-500.0,0.00054794,120]
[330014010,1718934642222,-500.0,0.00054794,120]
[330014011,1718934642232,-500.0,0.00054794,120]
[330014012,1718934642241,-500.0,0.00054794,120]
[330014013,1718934642250,-500.0,0.00054794,120]
[330014014,1718934642259,-500.0,0.00054794,120]
[330014015,1718934642268,-500.0,0.00054794,120]
[330014016,1718934642278,-500.0,0.00054794,120]
[330014017,1718934642288,-512.75522129,0.00054794,120]
[330014018,1718934642297,-500.0,0.00054794,120]
[330014019,1718934642306,-500.0,0.00054794,120]
[330014020,1718934642316,-208.83819706,0.00054794,120]
[330014021,1718934642325,-500.0,0.00054794,120]
[330014022,1718934642336,-535.28090366,0.00054794,120]
[330014023,1718934642345,-500.0,0.00054794,120]
[330014024,1718934642355,-415.22565992,0.00054794,120]
[330014025,1718934642364,-500.0,0.00054794,120]
[330014026,1718934642374,-5385.8,0.00054794,120]
[330014027,1718934642383,-694.46,0.00054794,120]
[330014028,1718934642392,-500.0,0.00054794,120]
[330014029,1718934642403,-676.64,0.00054794,120]
[330014030,1718934642412,-1203.0,0.00054794,120]
[330014031,1718934642421,-500.0,0.00054794,120]
[330014032,1718934642433,-500.0,0.00054794,120]
[330014033,1718934642442,-500.0,0.00054794,120]
[330014034,1718934642451,-507.39519876,0.00054794,120]
[330014035,1718934642460,-500.0,0.00054794,120]
[330014036,1718934642470,-717.76,0.00054794,120]
[330014037,1718934642479,-2346.09667248,0.00054794,120]
[330014038,1718934642678,-6336.05508451,0.00054794,120]
[330014039,1718934642689,-578.11354636,0.00054794,120]
[330014040,1718934642701,-6748.52967001,0.00054794,120]
[330014041,1718934642769,-468.12640148,0.00054794,120]
[330014042,1718934642845,512.43914656,0.00043223,30]
[330014043,1718934643025,-26840.74,0.00054772,3]
[330014044,1718934643035,-2978.98862516,0.00054794,120]
[330014045,1718934643044,-710.85,0.00054794,120]
[330014046,1718934643053,-500.0,0.00054794,120]
[330014047,1718934643064,-3099.19,0.00054794,120]
[330014048,1718934643074,-1975.32,0.00054794,120]
[330014049,1718934643083,-500.0,0.00054794,120]
[330014050,1718934643093,-266.30775723,0.00054794,120]
[330014051,1718934643102,-281.26069889,0.00054794,120]
[330014052,1718934643111,-503.8134374,0.00054794,120]
[330014053,1718934643120,-500.0,0.00054794,120]
[330014054,1718934643129,-500.0,0.00054794,120]
[330014055,1718934643138,-500.0,0.00054794,120]
[330014056,1718934643147,-7519.86,0.00054794,120]
[330014057,1718934643157,-500.0,0.00054794,120]
[330014058,1718934643166,-1853.2,0.00054794,120]
[330014059,1718934643175,-500.0,0.00054794,120]
[330014060,1718934643185,-4821.51,0.00054794,120]
[330014061,1718934643194,-2000.0,0.00054794,5]
[330014062,1718934643203,-3000.0,0.000548,120]
[330014063,1718934643212,-3000.0,0.000548,120]
[330014064,1718934643222,-3000.0,0.000548,120]
[330014065,1718934643231,-3000.0,0.000548,120]
[330014066,1718934643241,-3000.0,0.000548,120]
[330014067,1718934643250,-3000.0,0.000548,120]
[330014068,1718934643260,-3000.0,0.000548,120]
[330014069,1718934643269,-3000.0,0.000548,120]
[330014070,1718934643289,-3000.0,0.000548,120]
[330014071,1718934643306,-3000.0,0.000548,120]
[330014072,1718934643318,-3000.0,0.000548,120]
[330014073,1718934643334,-3000.0,0.000548,120]
[330014074,1718934643349,-3000.0,0.000548,120]
[330014075,1718934643366,-3000.0,0.000548,120]
[330014076,1718934643385,-3000.0,0.000548,120]
[330014077,1718934643401,-3000.0,0.000548,120]
[330014078,1718934643414,-3000.0,0.000548,120]
[330014079,1718934643431,-3000.0,0.000548,120]
[330014080,1718934643449,-3000.0,0.000548,120]
[330014082,1718934643462,-3000.0,0.000548,120]
[330014085,1718934643475,-3000.0,0.000548,120]
[330014087,1718934643488,-3000.0,0.000548,120]
[330014089,1718934643502,-3000.0,0.000548,120]
[330014091,1718934643518,-122.98709564,0.000548,120]
[330014093,1718934643540,-2170.41844419,0.000548,120]
[330014095,1718934643552,-50000.0,0.000548,120]
[330014096,1718934643563,-29978.74258407,0.0005485,120]
[330014124,1718934644313,-20021.25741593,0.0005485,120]
[330014125,1718934644326,-8892.29720676,0.0005489,120]
[330014126,1718934644338,-5959.1938092,0.0005489,120]
[330014182,1718934647141,-500.0,0.00054,120]
[330014183,1718934647151,-500.0,0.00054794,120]
[330014184,1718934647162,-2096.01,0.00054794,120]
[330014185,1718934647172,-579.16,0.00054794,120]
[330014186,1718934647182,-3676.44049586,0.0005489,120]
[330014187,1718934708676,5000.0,0.00027,22]
[330014191,1718935535151,-175.861007,0.00021096,2]
[330014192,1718935535184,-164.09213231,0.00026208,2]
[330014193,1718935535208,-120.72988573,0.00026308,2]
[330014195,1718935630163,-156.0,0.00026308,2]
[330014196,1718935634126,-652.59202178,0.00026308,2]
[330014197,1718935634148,-158.74382796,0.00031574,4]
[330014198,1718935634170,-307.0,0.00031574,2]
[330014199,1718935634195,-168.24053185,0.00032727,4]
[330014200,1718935634216,-168.24053185,0.00032727,4]
[330014201,1718935634237,-503.069096,0.00032762,2]
[330014202,1718935653163,-593.7556828,0.00032762,2]
[330014203,1718935747115,-666.04196679,0.00030662,2]
[330014204,1718935747140,-1338.0135967,0.00032762,2]
[330014205,1718935747160,-637.8168043,0.00033479,2]
[330014206,1718935747180,-171.813336,0.00034964,2]
[330014207,1718935747202,-666.04196679,0.00035662,2]
[330014208,1718935747221,-666.04196679,0.00040662,2]
[330014209,1718935747241,-4519.95,0.00041,37]
[330014210,1718935747261,-23308.022737,0.00041096,2]
[330014211,1718935747282,-1241.3873241,0.000447,28]
[330014212,1718935747302,-403.4587337,0.000448,2]
[330014213,1718935747322,-22707.84664163,0.00045,15]
[330014214,1718935747343,-403.45873366,0.00047068,2]
[330014215,1718935747362,-179.0,0.00048877,30]
[330014216,1718935747382,-410.6,0.00049315,120]
[330014218,1718935766892,356.63642582,0.00039711,4]
[330014248,1718935833087,-680.39044492,0.00030232,2]
[330014250,1718935833098,-434.4293937,0.00030232,2]
[330014252,1718935833110,-4085.18016138,0.00030232,2]
[330014254,1718935833119,-3819.50567599,0.000499,120]
[330014309,1718935839057,-258.75359852,0.000499,120]
[330014311,1718935839070,-921.74072549,0.000499,120]
[330014313,1718935839081,-5000.0,0.0005,120]
[330014315,1718935839091,-6057.06997641,0.000519,120]
[330014317,1718935839102,-288.835111,0.00053797,30]
[330014319,1718935839113,-250.863125,0.00053797,30]
[330014321,1718935839123,-169.722878,0.00053797,30]
[330014323,1718935839134,-2242.28398261,0.000539,120]
[330014325,1718935839148,-2757.71601739,0.000539,120]
[330014327,1718935839159,-242.07524022,0.000539,2]
[330014329,1718935839169,-15668.37,0.00053972,120]
[330014331,1718935839180,-500.0,0.00054,120]
[330014333,1718935839190,-1700.0,0.00054,60]
[330014335,1718935839200,-2568.77593927,0.00054096,60]
[330014337,1718935839210,-242.07524019,0.00054098,2]
[330014339,1718935839220,-1752.0,0.00054138,2]
[330014341,1718935839230,-242.07524019,0.00054295,2]
[330014344,1718935839240,-2752.732,0.000543,120]
[330014346,1718935839250,-250.863125,0.00054469,30]
[330014348,1718935839260,-288.835111,0.00054469,30]
[330014350,1718935839270,-242.07524019,0.00054493,2]
[330014352,1718935839281,-7922.0,0.000545,120]
[330014354,1718935839292,-3783.32362187,0.00054558,2]
[330014356,1718935839301,-153.9779854,0.0005463,2]
[330014358,1718935839311,-242.07524019,0.0005469,2]
[330014360,1718935839320,-18118.42863524,0.000547,120]
[330014362,1718935839330,-15668.37,0.0005477,120]
[330014364,1718935839340,-10786.69,0.0005477,3]
[330014366,1718935839351,-15668.37,0.0005478,120]
[330014368,1718935839361,-813.13,0.0005479,120]
[330014369,1718935839371,-2000.0,0.00054791,60]
[330014371,1718935839380,-2000.0,0.00054791,60]
[330014374,1718935839390,-676.31,0.00054791,60]
[330014375,1718935839400,-15668.37,0.00054791,120]
[330014377,1718935839410,-15668.37,0.00054791,120]
[330014379,1718935839420,-15668.37,0.00054792,120]
[330014381,1718935839430,-15668.37,0.00054792,120]
[330014384,1718935839440,-15668.37,0.00054793,120]
[330014385,1718935839450,-15668.37,0.00054793,120]
[330014387,1718935839460,-15668.37,0.00054793,120]
[330014389,1718935839469,-15668.37,0.00054793,120]
[330014391,1718935839480,-15668.37,0.00054793,120]
[330014393,1718935839489,-15668.37,0.00054793,120]
[330014395,1718935839499,-15668.37,0.00054793,120]
[330014397,1718935839509,-2176.71,0.00054794,120]
[330014398,1718935839520,-507.42846698,0.00054794,120]
[330014399,1718935839530,-500.0,0.00054794,120]
[330014400,1718935839541,-505.98689492,0.00054794,120]
[330014401,1718935839550,-504.84870896,0.00054794,120]
[330014402,1718935839560,-500.0,0.00054794,120]
[330014403,1718935839571,-500.0,0.00054794,120]
[330014404,1718935839581,-500.0,0.00054794,120]
[330014405,1718935839591,-500.0,0.00054794,120]
[330014406,1718935839602,-500.0,0.00054794,120]
[330014407,1718935839612,-340.47769639,0.00054794,120]
[330014408,1718935839622,-500.0,0.00054794,120]
[330014409,1718935839632,-500.0,0.00054794,120]
[330014410,1718935839641,-507.264613,0.00054794,120]
[330014411,1718935839651,-500.0,0.00054794,120]
[330014412,1718935839660,-500.0,0.00054794,120]
[330014413,1718935839670,-2008.68,0.00054794,120]
[330014414,1718935839680,-500.0,0.00054794,120]
[330014415,1718935839690,-500.0,0.00054794,120]
[330014417,1718935839700,-500.0,0.00054794,120]
[330014418,1718935839710,-500.0,0.00054794,120]
[330014420,1718935839721,-500.0,0.00054794,120]
[330014421,1718935839731,-500.0,0.00054794,120]
[330014423,1718935839741,-501.98233871,0.00054794,120]
[330014424,1718935839752,-500.0,0.00054794,120]
[330014425,1718935839762,-500.0,0.00054794,120]
[330014426,1718935839773,-500.0,0.00054794,120]
[330014427,1718935839783,-500.0,0.00054794,120]
[330014429,1718935839794,-500.0,0.00054794,120]
[330014430,1718935839804,-500.0,0.00054794,120]
[330014432,1718935839817,-500.0,0.00054794,120]
[330014433,1718935839829,-231.11044567,0.00054794,120]
[330014434,1718935839839,-500.0,0.00054794,120]
[330014435,1718935839849,-500.0,0.00054794,120]
[330014436,1718935839860,-218.59377065,0.00054794,120]
[330014437,1718935839871,-501.10284913,0.00054794,120]
[330014438,1718935839881,-539.68735058,0.00054794,120]
[330014439,1718935839891,-500.0,0.00054794,120]
[330014440,1718935839905,-1620.83,0.00054794,120]
[330014441,1718935839915,-514.72999811,0.00054794,120]
[330014442,1718935839926,-500.0,0.00054794,120]
[330014443,1718935839936,-500.0,0.00054794,120]
[330014444,1718935839947,-500.0,0.00054794,120]
[330014445,1718935840053,-502.61774681,0.00054794,120]
[330014446,1718935840063,-500.0,0.00054794,120]
[330014447,1718935840073,-500.0,0.00054794,120]
[330014448,1718935840083,-503.21598794,0.00054794,120]
[330014449,1718935840093,-704.93,0.00054794,120]
[330014450,1718935840103,-827.89,0.00054794,120]
[330014451,1718935840113,-770.91,0.00054794,120]
[330014452,1718935840124,-500.0,0.00054794,120]
[330014453,1718935840133,-500.0,0.00054794,120]
[330014454,1718935840144,-2376.34,0.00054794,120]
[330014455,1718935840153,-500.0,0.00054794,120]
[330014456,1718935840163,-257.48865652,0.00054794,120]
[330014457,1718935840172,-503.48294488,0.00054794,120]
[330014458,1718935840182,-500.0,0.00054794,120]
[330014459,1718935840191,-2947.64,0.00054794,120]
[330014460,1718935840201,-500.0,0.00054794,120]
[330014461,1718935840211,-500.0,0.00054794,120]
[330014462,1718935840220,-500.0,0.00054794,120]
[330014463,1718935840230,-1376.85,0.00054794,120]
[330014464,1718935840240,-678.58,0.00054794,120]
[330014465,1718935840249,-500.0,0.00054794,120]
[330014466,1718935840259,-429.5371934,0.00054794,120]
[330014467,1718935840268,-987.34,0.00054794,120]
[330014468,1718935840278,-500.0,0.00054794,120]
[330014469,1718935840288,-765.83,0.00054794,120]
[330014471,1718935840297,-1582.52,0.00054794,120]
[330014472,1718935840307,-500.0,0.00054794,120]
[330014474,1718935840317,-203.65702159,0.00054794,120]
[330014476,1718935840328,-500.0,0.00054794,120]
[330014478,1718935840338,-2028.88,0.00054794,120]
[330014480,1718935840357,-600.72,0.00054794,120]
[330014481,1718935840366,-500.0,0.00054794,120]
[330014482,1718935840376,-588.02,0.00054794,7]
[330014483,1718935840387,-500.0,0.00054794,120]
[330014484,1718935840397,-506.51523643,0.00054794,120]
[330014485,1718935840407,-500.0,0.00054794,120]
[330014486,1718935840417,-500.0,0.00054794,2]
[330014487,1718935840427,-500.0,0.00054794,120]
[330014488,1718935840436,-256.96,0.00054794,120]
[330014489,1718935840446,-500.0,0.00054794,120]
[330014490,1718935840456,-500.0,0.00054794,120]
[330014491,1718935840466,-485.06271791,0.00054794,120]
[330014492,1718935840475,-500.0,0.00054794,2]
[330014493,1718935840485,-510.16352094,0.00054794,120]
[330014494,1718935840495,-500.0,0.00054794,120]
[330014495,1718935840504,-7780.06,0.00054794,120]
[330014496,1718935840513,-500.0,0.00054794,120]
[330014497,1718935840523,-500.0,0.00054794,120]
[330014498,1718935840532,-951.06,0.00054794,120]
[330014499,1718935840544,-500.0,0.00054794,120]
[330014500,1718935840556,-500.0,0.00054794,120]
[330014501,1718935840565,-500.0,0.00054794,120]
[330014502,1718935840575,-508.86267507,0.00054794,120]
[330014503,1718935840588,-500.0,0.00054794,120]
[330014504,1718935840598,-500.0,0.00054794,120]
[330014505,1718935840609,-541.72984609,0.00054794,120]
[330014506,1718935840619,-512.75522129,0.00054794,120]
[330014507,1718935840628,-500.0,0.00054794,120]
[330014508,1718935840638,-500.0,0.00054794,120]
[330014509,1718935840647,-500.0,0.00054794,120]
[330014510,1718935840658,-500.0,0.00054794,120]
[330014512,1718935840668,-500.0,0.00054794,120]
[330014513,1718935840678,-415.22565992,0.00054794,120]
[330014514,1718935840688,-507.18913037,0.00054794,120]
[330014515,1718935840698,-500.0,0.00054794,120]
[330014516,1718935840709,-2008.08,0.00054794,120]
[330014517,1718935840718,-500.0,0.00054794,120]
[330014518,1718935840728,-2349.54,0.00054794,5]
[330014519,1718935840737,-500.0,0.00054794,120]
[330014520,1718935840747,-500.0,0.00054794,120]
[330014521,1718935840757,-662.9,0.00054794,120]
[330014522,1718935840767,-500.0,0.00054794,120]
[330014523,1718935840776,-506.70676262,0.00054794,120]
[330014524,1718935840785,-500.0,0.00054794,120]
[330014525,1718935840800,-500.0,0.00054794,120]
[330014526,1718935840810,-1776.03,0.00054794,120]
[330014527,1718935840823,-1349.41,0.00054794,120]
[330014528,1718935840834,-740.85,0.00054794,120]
[330014529,1718935840844,-544.72,0.00054794,120]
[330014530,1718935840853,-544.72,0.00054794,120]
[330014531,1718935840864,-544.72,0.00054794,120]
[330014532,1718935840874,-544.72,0.00054794,120]
[330014533,1718935840884,-544.72,0.00054794,120]
[330014534,1718935840893,-544.72,0.00054794,120]
[330014535,1718935840904,-544.72,0.00054794,120]
[330014536,1718935840914,-544.72,0.00054794,120]
[330014537,1718935840923,-544.72,0.00054794,120]
[330014538,1718935840933,-544.72,0.00054794,120]
[330014539,1718935840942,-544.72,0.00054794,120]
[330014540,1718935840951,-544.72,0.00054794,120]
[330014541,1718935840960,-544.72,0.00054794,120]
[330014542,1718935840969,-544.72,0.00054794,120]
[330014543,1718935840978,-544.72,0.00054794,120]
[330014544,1718935840987,-544.72,0.00054794,120]
[330014545,1718935840997,-544.72,0.00054794,120]
[330014546,1718935841007,-500.0,0.00054794,120]
[330014547,1718935841016,-544.72,0.00054794,120]
[330014548,1718935841026,-544.72,0.00054794,120]
[330014549,1718935841035,-544.72,0.00054794,120]
[330014550,1718935841048,-544.72,0.00054794,120]
[330014551,1718935841058,-544.72,0.00054794,120]
[330014552,1718935841067,-544.72,0.00054794,120]
[330014553,1718935841077,-500.0,0.00054794,120]
[330014554,1718935841087,-544.74831222,0.00054794,120]
[330014556,1718935841096,-500.0,0.00054794,120]
[330014557,1718935841106,-500.0,0.00054794,120]
[330014559,1718935841116,-366.78411434,0.00054794,120]
[330014564,1718935841158,-133.21588566,0.00054794,120]
[330014565,1718935841169,-500.0,0.00054794,120]
[330014566,1718935841179,-500.0,0.00054794,120]
[330014567,1718935841189,-581.11261686,0.00054794,120]
[330014568,1718935841199,-503.08895905,0.00054794,120]
[330014569,1718935841208,-500.0,0.00054794,120]
[330014570,1718935841219,-500.0,0.00054794,120]
[330014571,1718935841229,-500.0,0.00054794,120]
[330014572,1718935841239,-940.2,0.00054794,120]
[330014573,1718935841249,-5573.3,0.00054794,120]
[330014574,1718935841258,-1091.25,0.00054794,120]
[330014575,1718935841268,-19479.48,0.00054794,120]
[330014576,1718935841277,-500.0,0.00054794,120]
[330014577,1718935841287,-508.83602575,0.00054794,120]
[330014578,1718935841297,-500.0,0.00054794,120]
[330014579,1718935841307,-211.4112379,0.00054794,120]
[330014580,1718935841316,-3013.71,0.00054794,120]
[330014581,1718935841326,-267.27661545,0.00054794,120]
[330014582,1718935841336,-502.01160059,0.00054794,120]
[330014583,1718935841346,-506.12062174,0.00054794,120]
[330014584,1718935841356,-590.22,0.00054794,120]
[330014585,1718935841366,-1848.47,0.00054794,120]
[330014586,1718935841375,-500.0,0.00054794,120]
[330014587,1718935841384,-7440.25,0.00054794,120]
[330014588,1718935841394,-500.0,0.00054794,60]
[330014589,1718935841404,-559.89,0.00054794,120]
[330014590,1718935841414,-500.0,0.00054794,120]
[330014591,1718935841423,-3425.44,0.00054794,120]
[330014592,1718935841432,-575.89,0.00054794,120]
[330014593,1718935841442,-500.0,0.00054794,120]
[330014594,1718935841451,-504.01179433,0.00054794,120]
[330014595,1718935841460,-500.0,0.00054794,120]
[330014596,1718935841470,-500.0,0.00054794,120]
[330014597,1718935841480,-500.0,0.00054794,120]
[330014598,1718935841490,-1224.35,0.00054794,120]
[330014599,1718935841499,-576.52,0.00054794,120]
[330014600,1718935841508,-500.0,0.00054794,120]
[330014601,1718935841518,-1800.42,0.00054794,120]
[330014602,1718935841527,-500.0,0.00054794,120]
[330014603,1718935841537,-529.09733255,0.00054794,120]
[330014604,1718935841548,-542.55518755,0.00054794,120]
[330014605,1718935841558,-1152.7,0.00054794,120]
[330014606,1718935841567,-718.83,0.00054794,120]
[330014608,1718935841576,-1375.83,0.00054794,120]
[330014610,1718935841586,-500.0,0.00054794,120]
[330014612,1718935841596,-639.96,0.00054794,120]
[330014613,1718935841606,-601.07,0.00054794,120]
[330014614,1718935841615,-500.0,0.00054794,120]
[330014615,1718935841625,-514.30593637,0.00054794,120]
[330014616,1718935841634,-564.18,0.00054794,120]
[330014617,1718935841643,-52950.72,0.00054794,120]
[330014618,1718935841653,-500.0,0.00054794,120]